Cogmind - Beta 12 @@@ ROGUE MODE // 2024.01.04 @ 04:30:41 Player: Trione Result: Destroyed by Y-72 Warden with Quantum Rifle Performance ------------- Evolutions (7) 3500 Regions Visited (26) 5200 Robots Destroyed (345) 1725 Value Destroyed (15012) 15012 Prototype IDs (56) 1120 Alien Tech Used (3) 600 Bonus (7082) 7082 TOTAL SCORE: 34239 Bonus ------- Triggered High Security 500 High Alert Combat Kills 3276 Follower Combat Kills 1295 Network Hubs Disabled 400 Met Data Miner 300 Met Zhirov 300 Met Warlord at Base 500 MAIN.C Attacked Warlord 500 Read Decrypted Archives 300 Friendly Fire -289 Cogmind --------- Core Integrity 0/1300 Matter 204/300 Energy 99/100 System Corruption 79% Temperature Cool (9) Movement Core (50) Location -3/Research Parts ------- > --- POWER (2) -------- (None) > --- PROPULSION (4) --- (None) > --- UTILITY (13) ----- Advanced Signal Interpreter Transport Network Coupler Advanced Target Analyzer > --- WEAPON (2) ------- (None) > --- INVENTORY (5) ---- Advanced Coolant Injector Makeshift Transmission Jammer Advanced Force Field Vortex Driver (8) Hypervelocity Mass Driver Peak State ------------ > --- POWER ------------ Vortex Chain Reactor > --- PROPULSION ------- Improved Heavy Treads Centrium Heavy Treads > --- UTILITY ---------- Experimental Coolant Injector Huge Storage Unit Experimental Matter Compressor Advanced Gravity Neutralizer Advanced Signal Interpreter Transport Network Coupler Advanced Target Analyzer Advanced Target Analyzer Makeshift Transmission Jammer Thermal Barrier Advanced Force Field Advanced Hacking Suite Minesniffer Drone Bay > --- WEAPON ----------- Nova Cannon Tactical Quantum Warhead > --- INVENTORY -------- Advanced Medium Treads Advanced Medium Treads Centrium Heavy Treads Advanced Coolant Injector Energy Well Makeshift Sensor Array Heavy Armor Plating Dimensional Node Initializer Transdimensional Reconstructor Gamma Rifle Vortex Driver Vortex Driver Hypervelocity Coil Gun Antimatter Cannon Hypervelocity Mass Driver Shock Bomb Launcher Long-range Missile Launcher Improved Datajack Nanosword [Rating: 169] Favorites ----------- Power Neutrino Core Engine Reinforced Deuterium Engine Power Core Neutrino Core Reactor Compact Particle Reactor Propulsion Wheel Treads Centrium Heavy Treads Leg Advanced Myomer Leg Wheel Wheel Utility Advanced Targeting Computer Device Sensor Drone Bay Storage Huge Storage Unit Processor Advanced Targeting Computer Hackware Advanced Hacking Suite Protection Improved Power Shielding Weapon Advanced KE Penetrator Energy Gun Particle Gun Energy Cannon Heavy Phase Cannon Ballistic Gun Advanced KE Penetrator Ballistic Cannon Hypervelocity Mass Driver Launcher Grenade Launcher Impact Weapon Heavy Flail Slashing Weapon Vibroblade Special Melee Weapon Improved Datajack Build | -11 -10 -10 -10 -9 -8 -7 -7 -7 -7 -6 -6 -6 -6 -6 -6 -5 -5 -5 -5 -4 -4 -4 -4 -4 -3 -3 ------- Run | Jun Mat Min Exi Min Mat Fac Low Low Dat Pro Fac Ext Cet Arc Hub Fac Upp Upp Zhi Pro Fac Upp Upp War Pro Res Slots Evolved 14 | . . . . . 4 2 . . . . 2 . . . . 2 . . . . 2 . . . . 2 Power 1 | . . . . . . . . . . . 1 . . . . . . . . . . . . . . . Propulsion 2 | . . . . . 1 . . . . . . . . . . 1 . . . . . . . . . . Utility 11 | . . . . . 3 2 . . . . 1 . . . . 1 . . . . 2 . . . . 2 Weapon . | . . . . . . . . . . . . . . . . . . . . . . . . . . . Parts Attached 674 | 7 11 6 . 7 83 7 12 . 2 26 31 63 16 . 33 36 13 13 10 7 66 21 9 14 17 164 Power 37 | 1 4 1 . . 2 1 . . . . 1 2 2 . 3 1 . . . 1 6 2 . . 1 9 Engine 10 | 1 4 1 . . 2 1 . . . . 1 . . . . . . . . . . . . . . . Core 14 | . . . . . . . . . . . . 2 1 . 2 1 . . . 1 2 1 . . . 4 Reactor 13 | . . . . . . . . . . . . . 1 . 1 . . . . . 4 1 . . 1 5 Propulsion 89 | 2 . 2 . 2 24 . . . . 2 2 13 4 . 3 7 1 3 6 . 6 . . . 1 11 Treads 43 | 1 . 1 . . 10 . . . . 1 . 6 2 . . 4 . 1 1 . 4 . . . 1 11 Leg 3 | . . . . . . . . . . . . . . . . . . . 3 . . . . . . . Wheel 43 | 1 . 1 . 2 14 . . . . 1 2 7 2 . 3 3 1 2 2 . 2 . . . . . Hover . | . . . . . . . . . . . . . . . . . . . . . . . . . . . Flight . | . . . . . . . . . . . . . . . . . . . . . . . . . . . Utility 291 | 2 4 1 . 1 14 5 2 . . 6 20 22 2 . 14 21 10 9 4 2 31 14 2 8 7 90 Device 197 | 1 . . . 1 5 2 2 . . 3 10 13 2 . 7 12 7 7 3 1 20 12 2 8 5 74 Storage 26 | 1 3 . . . 3 2 . . . . 1 1 . . 5 3 . . . . 2 . . . 1 4 Processor 7 | . . . . . 1 1 . . . . . . . . 1 . . 1 . . . . . . 1 2 Hackware 5 | . . . . . . . . . . . 1 . . . . 2 . . . . 2 . . . . . Protection 56 | . 1 1 . . 5 . . . . 3 8 8 . . 1 4 3 1 1 1 7 2 . . . 10 Artifact . | . . . . . . . . . . . . . . . . . . . . . . . . . . . Weapon 257 | 2 3 2 . 4 43 1 10 . 2 18 8 26 8 . 13 7 2 1 . 4 23 5 7 6 8 54 Energy Gun 24 | 2 1 1 . 1 6 . . . . . . . 1 . 1 3 . . . . . . . . . 8 Energy Cannon 50 | . . . . . 6 . 3 . . 2 3 6 . . 2 1 1 . . 2 6 2 1 5 2 8 Ballistic Gun 72 | . 2 . . 1 17 . 3 . 1 7 3 9 3 . 4 3 . . . . 3 1 1 . 2 12 Ballistic Cannon 19 | . . . . . . . . . . . . . 1 . 3 . . 1 . . 6 . . . . 8 Launcher 52 | . . 1 . 2 7 . 1 . . 7 1 8 3 . 2 . 1 . . 2 3 1 3 . 1 9 Special Weapon . | . . . . . . . . . . . . . . . . . . . . . . . . . . . Impact Weapon 13 | . . . . . 7 1 2 . . 1 1 . . . 1 . . . . . . . . . . . Slashing Weapon 18 | . . . . . . . . . . . . . . . . . . . . . 5 1 1 . 2 9 Piercing Weapon . | . . . . . . . . . . . . . . . . . . . . . . . . . . . Special Melee Weapon 9 | . . . . . . . 1 . 1 1 . 3 . . . . . . . . . . 1 1 1 . Unidentified Prototypes 26 | . . . . 1 1 . . . . . . . 2 . 1 1 . . 4 . 2 . . 6 . 8 Corrupted Parts 3 | . . . . . . . . . . . . 2 . . 1 . . . . . . . . . . . System Corruption 15 | . . . . . . . . . . . . 7 . . 8 . . . . . . . . . . . Parts Lost 81 | . 1 4 . 2 10 . . . . . . 17 2 . 8 1 . 2 . 2 3 1 . . . 28 Power 11 | . . 1 . . 1 . . . . . . 1 . . 1 . . . . 2 1 1 . . . 3 Propulsion 25 | . . 2 . 1 6 . . . . . . 6 1 . 2 1 . . . . . . . . . 6 Utility 32 | . 1 1 . . 2 . . . . . . 6 . . 2 . . 2 . . 2 . . . . 16 Weapon 13 | . . . . 1 1 . . . . . . 4 1 . 3 . . . . . . . . . . 3 Highest Loss Streak 12 | . 1 4 . 2 3 . . . . . . 8 2 . 3 1 . 1 . 1 2 1 . . . 12 To Critical Strikes 2 | . . . . . . . . . . . . 2 . . . . . . . . . . . . . . Average Slot Usage (%) 92 | . 99 100 100 98 99 100 99 100 93 96 93 96 96 100 97 92 90 87 87 86 88 88 89 88 89 87 Engine 3 | . 14 14 14 14 8 7 7 7 7 7 13 9 . . . . . . . . . . . . . . Core 4 | . . . . . . . . . . . . 3 8 6 6 11 11 11 11 9 3 8 10 10 5 2 Reactor 2 | . . . . . . . . . . . . . 2 6 6 . . . . . 6 1 . . 4 5 Treads 8 | . 14 14 14 14 9 7 7 7 7 7 2 2 3 . . 4 5 5 4 5 11 15 15 15 15 9 Wheel 8 | . 14 14 14 13 17 15 15 15 15 14 17 17 15 20 19 10 11 11 10 11 3 . . . . . Device 20 | . 2 . . 6 17 30 29 30 30 22 18 18 24 26 20 16 12 10 10 11 21 25 26 28 28 26 Storage 6 | . 14 14 14 14 9 7 7 7 7 7 6 8 13 13 10 9 5 5 5 5 5 5 5 5 5 4 Processor 10 | . . . . . 3 7 7 7 7 7 6 6 6 6 12 11 11 11 11 11 10 10 10 10 12 20 Hackware 5 | . . . . . . . . . . . 3 6 6 6 6 9 11 11 8 5 10 10 10 7 5 3 Protection 5 | . 10 14 14 7 14 7 7 7 7 12 10 9 . . . 2 5 5 7 11 4 . . . . . Energy Gun 1 | . 15 13 14 23 3 . . . . . . . 3 6 . . . . . . . . . . . . Energy Cannon 3 | . . . . . 4 . 1 7 1 4 3 6 2 . 4 4 4 5 5 4 2 3 3 1 1 3 Ballistic Gun 4 | . 12 14 14 3 7 7 9 . . 8 6 2 1 . 5 4 5 3 . . 3 6 6 . 3 1 Naked Turns . | . . . . . . . . . . . . . . . . . . . . . . . . . . . Heaviest Build 181 | 12 29 30 30 43 77 80 83 83 83 103 155 166 140 139 145 142 150 155 143 143 173 155 158 162 165 181 Greatest Support 171 | 20 20 16 16 16 64 29 29 29 29 29 45 52 57 57 57 103 41 35 99 35 153 153 137 153 156 171 Greatest Overweight (x) 11 | . 1 1 1 4 7 2 4 4 2 3 5 11 5 2 3 4 5 5 5 4 4 1 1 1 1 1 Average Overweight (x) 1 | . . 1 1 2 2 2 2 2 2 3 3 3 2 2 2 2 4 4 3 3 1 . 1 . . . Largest Inventory Capacity 25 | 8 15 15 15 15 25 25 20 20 20 20 25 25 25 25 25 25 25 25 25 25 25 25 25 25 25 25 Average Capacity 23 | 7 14 15 15 15 19 20 20 20 20 20 23 25 25 25 25 25 25 25 25 25 25 25 25 25 25 24 Most Carried 25 | 8 15 15 15 15 20 20 20 20 20 20 25 25 25 25 25 25 25 25 25 25 25 25 25 25 25 25 Average Carried 22 | 4 12 12 14 14 18 19 20 20 12 19 21 24 24 25 23 22 24 24 24 24 24 24 24 24 24 24 Final Capacity 25 | 8 15 15 15 15 20 20 20 20 20 20 25 25 25 25 25 25 25 25 25 25 25 25 25 25 25 5 Final Carried 25 | 8 15 15 15 14 20 20 20 20 20 20 25 25 25 25 23 25 25 25 25 25 25 25 25 25 25 5 Class Distribution -------------------- 53% | Scavenger-Mutant 18% | Hacker-Mutant 13% | Mutant 5% | Scavenger-Skirmisher 4% | Scavenger-Assassin Dominant Class ---------------- Mutant | -10/Materials Mutant | -10/Mines Mutant | -10/Exiles Mutant | -9/Mines Scavenger-Mutant | -8/Materials Scavenger-Mutant | -7/Factory Scavenger-Mutant | -7/Lower Caves Scavenger-Mutant | -7/Lower Caves Scavenger-Mutant | -7/Data Miner Scavenger-Mutant | -6/Proximity Caves Scavenger-Mutant | -6/Factory Scavenger-Mutant | -6/Extension Scavenger-Mutant | -6/Cetus Scavenger-Mutant | -6/Archives Scavenger-Mutant | -6/Hub_04(d) Scavenger-Mutant | -5/Factory Scavenger-Mutant | -5/Upper Caves Scavenger-Mutant | -5/Upper Caves Hacker-Mutant | -5/Zhirov Scavenger-Mutant | -4/Proximity Caves Hacker-Mutant | -4/Factory Hacker-Mutant | -4/Upper Caves Hacker-Mutant | -4/Upper Caves Hacker-Mutant | -4/Warlord Mutant | -3/Proximity Caves Scavenger-Mutant | -3/Research Resources | -11 -10 -10 -10 -9 -8 -7 -7 -7 -7 -6 -6 -6 -6 -6 -6 -5 -5 -5 -5 -4 -4 -4 -4 -4 -3 -3 ----------- Run | Jun Mat Min Exi Min Mat Fac Low Low Dat Pro Fac Ext Cet Arc Hub Fac Upp Upp Zhi Pro Fac Upp Upp War Pro Res Matter Collected 13845 | 270 150 122 . 120 1436 20 372 8 . 451 675 980 311 . 489 363 411 276 262 111 1756 545 188 191 121 4217 Remotely . | . . . . . . . . . . . . . . . . . . . . . . . . . . . Salvage Created 17761 | 86 350 309 . 34 2259 20 623 61 . 376 709 1929 157 . 1011 356 181 200 312 650 2031 409 229 . 178 5291 Parts 893 | 5 23 25 . 4 140 . 6 . . 28 20 86 10 . 46 14 15 6 1 16 104 26 9 . 13 296 Haulers Intercepted 11 | . . . . . 2 . . . . . 1 . . . 3 . . . . . 2 . . . . 3 Recyclers Shooed 12 | . . . . . . . . . . . 3 5 . . . . . . . . 1 . . . . 3 Parts Field Recycled . | . . . . . . . . . . . . . . . . . . . . . . . . . . . Retrieved Matter . | . . . . . . . . . . . . . . . . . . . . . . . . . . . Parts Self-Destructed 106 | . . . . . . . 3 . . 31 . . . . . . 17 6 1 4 . 24 6 . 14 . Prevented 29 | . . . . . . . . . . 3 . . . . . . 1 . . 9 . 10 6 . . . Kills | -11 -10 -10 -10 -9 -8 -7 -7 -7 -7 -6 -6 -6 -6 -6 -6 -5 -5 -5 -5 -4 -4 -4 -4 -4 -3 -3 ------- Run | Jun Mat Min Exi Min Mat Fac Low Low Dat Pro Fac Ext Cet Arc Hub Fac Upp Upp Zhi Pro Fac Upp Upp War Pro Res Combat Hostiles Destroyed 279 | . 10 7 . 6 44 . 3 . . 10 3 25 8 . 14 3 5 4 . 9 33 9 3 . 5 78 Melee 4 | . . . . . . . . . . . . . . . . . . . . . 2 . . . . 2 Guns 92 | . 10 3 . . 18 . 1 . . 4 2 3 . . 5 2 1 . . . 9 7 1 . 2 24 Cannons 70 | . . . . . 11 . . . . . 1 9 2 . 3 1 . 4 . . 15 . . . 1 23 AOE 93 | . . 4 . 6 13 . 2 . . 6 . 10 6 . 5 . 4 . . 6 4 . 1 . 2 24 Classes Destroyed 24 | 2 2 . . 2 11 . 1 . . 2 . . . . 1 . . . . . 1 . . . . 2 Worker 19 | . . . . 1 5 . . . . . . 1 . . 1 . . . . . . . . . . 11 Builder 11 | . . . . . 2 . . . . . . 3 . . 2 . . . . . 1 . . . . 3 Tunneler 9 | 2 . . . . 2 1 . . . . . 1 . . . . . . . . . . . . . 3 Hauler 11 | . . . . . 2 . . . . . 1 . . . 3 . . . . . 2 . . . . 3 Recycler 16 | 1 . 1 . . . . . . . . 3 3 . . . 1 . . . . 2 . . . . 5 Minesweeper 1 | . . . . . . . 1 . . . . . . . . . . . . . . . . . . . Mechanic 4 | . . . . . 1 . . . . . . . . . . 1 . . . . . . . . . 2 Operator 1 | . . . . . . . . . . . . . . . . . . . . . 1 . . . . . Drone 1 | . . . . . 1 . . . . . . . . . . . . . . . . . . . . . Watcher 10 | . . . . . 2 . . . . . 1 1 . . . . . . . . 1 . . . . 5 Swarmer 68 | . 3 . . 3 8 . . . . 5 . 2 6 . 4 . 4 . . 5 8 5 . . 3 12 Saboteur 2 | . . . . . . . . . . . . . . . . . . . . . . . . . . 2 Grunt 84 | . 7 7 . . 18 . 2 . . . 1 11 . . 5 . . 2 . 4 6 1 1 . . 19 Brawler 7 | . . . . . 4 . . . . . . 1 . . . . . . . . . . . . . 2 Duelist 3 | . . . . . 1 . 1 . . . . 1 . . . . . . . . . . . . . . Protector 4 | . . . . . 1 . . . . 2 . . . . . . . . . . . . . . . 1 Sentry 27 | . . . . . 8 . . . . . 2 5 . . 3 1 1 1 . . 2 . . . . 4 Specialist 2 | . . . . . . . . . . . . . . . . . . . . . . . . . . 2 Hunter 25 | . . . . . 3 . . . . 2 . 4 . . . 2 . 1 . . 6 2 2 . . 3 Programmer 48 | . . . . . . . . . . . . . . . 2 . . . . . 11 . . . 2 33 Heavy 1 | . . . . . 1 . . . . . . . . . . . . . . . . . . . . . Behemoth 2 | . . . . . . . . . . 1 . 1 . . . . . . . . . . . . . . Cetus Guard 2 | . . . . . . . . . . . . . 2 . . . . . . . . . . . . . Decomposer 3 | . . . . . . . . . . . . . . . . . 3 . . . . . . . . . Samaritan 2 | . . . . . . . . . . 2 . . . . . . . . . . . . . . . . Assembled 3 | . . . . 3 . . . . . . . . . . . . . . . . . . . . . . Wasp 1 | . . . . . . . . . . . . . . . . . . . . . . 1 . . . . Best Kill Streak 16 | 3 2 5 . 4 8 1 2 . . 4 2 9 3 . 5 3 4 3 . 5 7 5 2 . 2 16 Combat Bots Only 13 | . 2 5 . 3 6 . 2 . . 4 1 5 3 . 4 2 4 3 . 5 4 5 2 . 2 13 Max Kills in Single Turn 4 | 1 1 1 . 3 4 1 1 . . 2 1 3 3 . 4 1 3 1 . 4 2 1 1 . 1 4 Gunslinging . | . . . . . . . . . . . . . . . . . . . . . . . . . . . Exploded 4 | . . 1 . 3 3 . 1 . . 2 . 2 3 . 4 . 3 . . 4 2 . 1 . 1 3 Melee 1 | . . . . . . . . . . . . . . . . . . . . . 1 . . . . 1 Uniques/NPCs Destroyed . | . . . . . . . . . . . . . . . . . . . . . . . . . . . Combat | -11 -10 -10 -10 -9 -8 -7 -7 -7 -7 -6 -6 -6 -6 -6 -6 -5 -5 -5 -5 -4 -4 -4 -4 -4 -3 -3 -------- Run | Jun Mat Min Exi Min Mat Fac Low Low Dat Pro Fac Ext Cet Arc Hub Fac Upp Upp Zhi Pro Fac Upp Upp War Pro Res Damage Taken 22146 | . 554 372 . 195 2210 . 110 . . 616 218 2541 306 20 601 763 76 394 . 289 2657 499 177 . 146 9402 Core 2514 | . 137 33 . 24 378 . 41 . . 87 37 208 41 . 93 59 . 20 . 18 36 42 . . . 1260 Absorbed by Shields 6098 | . . . . . . . . . . . . . . . . . . . . . 1188 520 151 . 153 4086 Reduced by Siege Mode 399 | . . . . . . . . . . . . . . . . 24 . 11 . 2 166 1 11 . . 184 Redirected to Shielding 745 | . 19 21 . 8 52 . . . . 10 1 238 . . 22 . . . . 90 39 . . . . 245 Regen/Repaired (Parts) 2291 | . . . . . 67 257 . . . . . . . . . 844 . . . . . . . 317 . 806 Core Remaining (%) 67 | 100 . . . 22 31 . . . . 81 . . . . 55 . . . . 90 . . . . 93 . Volleys Fired 1340 | 12 45 24 . 6 147 . 55 4 . 41 32 114 21 . 63 37 44 57 20 28 145 70 20 11 23 321 Largest 2 | 1 2 2 . 1 2 . 2 1 . 2 2 2 2 . 2 2 2 2 2 1 2 2 2 1 2 2 Hottest 275 | 40 60 85 . 30 110 . 69 60 . 88 113 160 113 . 275 170 125 156 156 90 156 140 90 105 140 188 Shots Fired 1869 | 12 90 42 . 6 235 . 64 4 . 49 47 174 24 . 91 50 47 68 21 28 221 83 26 11 26 450 Gun 752 | 12 90 36 . . 144 . 18 . . 16 19 49 9 . 25 15 3 . . . 79 53 9 . 8 167 Cannon 965 | . . . . . 73 . 38 4 . 23 25 102 9 . 65 35 42 68 21 17 125 25 9 11 15 258 Launcher 152 | . . 6 . 6 18 . 8 . . 10 3 23 6 . 1 . 2 . . 11 17 5 8 . 3 25 Special . | . . . . . . . . . . . . . . . . . . . . . . . . . . . Kinetic 839 | . 45 18 . . 128 . 18 . . 16 19 49 14 . 60 10 3 35 1 . 154 53 9 . 8 199 Thermal 781 | 12 45 18 . . 75 . 36 4 . 23 23 68 4 . 30 40 42 33 20 17 50 25 9 10 15 182 Explosive 88 | . . 6 . 6 9 . 8 . . 6 3 8 6 . 1 . 2 . . 3 2 . . . 3 25 Electromagnetic 151 | . . . . . 23 . 2 . . 4 2 49 . . . . . . . 8 15 5 8 . . 35 Entropic 10 | . . . . . . . . . . . . . . . . . . . . . . . . 1 . 9 Robot Hit Streak 44 | 3 12 10 . 2 26 . 14 2 . 24 11 26 7 . 10 18 11 15 31 10 44 16 6 4 10 27 Robot Miss Streak 6 | 3 3 2 . . 6 . 4 2 . 4 2 6 2 . 1 2 1 2 1 1 3 2 1 . 3 3 Penetration Max 1 | . . . . . 1 . . . . . . 1 1 . 1 1 . . . . 1 1 . . . 1 Secondary Targets 4 | . 1 1 . . 1 . . . . 1 . . . . . . . . . . . . . . . . Max Gunslinging Chain 1 | . 1 1 . . 1 . . . . 1 . . . . . . . . . . . . . . . . Shots Hit Robots 1109 | 6 57 26 . 1 137 2 41 2 3 28 31 142 11 . 29 32 6 30 18 18 135 42 6 3 8 295 Core Hits 695 | 4 21 19 . 14 95 . 21 1 . 30 30 87 14 . 30 9 9 8 4 18 69 12 9 1 11 179 Critical Kills 60 | . . . . . 2 . . . . . . . 1 . 3 1 . 2 . . 13 1 . . 1 36 Critical Parts Destroyed 82 | . . . . . . . 1 . . . . 2 1 . 2 . . 4 . . 18 2 . . 1 51 Critical Strikes 159 | . . . . . 3 . 1 . . . . 3 2 . 6 1 . 6 . . 34 5 . . 2 96 Meltdown 4 | . . . . . 1 . . . . . . . . . . . . . . . 1 . . . . 2 Destroy 144 | . . . . . 1 . 1 . . . . 3 2 . 6 1 . 6 . . 32 5 . . 2 85 Blast 1 | . . . . . . . . . . . . . . . . . . . . . 1 . . . . . Corrupt 8 | . . . . . 1 . . . . . . . . . . . . . . . . . . . . 7 Sunder 2 | . . . . . . . . . . . . . . . . . . . . . . . . . . 2 Melee Attacks 134 | . . . . . 14 3 7 . 3 3 6 39 . . 1 . . . . . 22 2 . 6 1 27 Impact 32 | . . . . . 14 3 6 . . 2 6 . . . 1 . . . . . . . . . . . Slashing 56 | . . . . . . . . . . . . . . . . . . . . . 22 2 . 4 1 27 Piercing . | . . . . . . . . . . . . . . . . . . . . . . . . . . . Sneak Attacks 48 | . . . . . . 1 . . 3 1 1 39 . . . . . . . . 1 . . 2 . . Combat Hostiles . | . . . . . . . . . . . . . . . . . . . . . . . . . . . Follow-up Attacks . | . . . . . . . . . . . . . . . . . . . . . . . . . . . Damage Inflicted 41818 | 66 552 509 . 503 4330 155 1210 45 . 1390 1024 4727 632 . 1917 1004 456 532 675 1286 4460 1048 376 36 542 14343 Guns 10935 | 66 552 261 . . 1839 . 284 . . 228 269 844 115 . 486 284 56 . . . 1621 863 170 . 147 2850 Cannons 14804 | . . . . . 1056 . 626 45 . 219 421 2030 123 . 503 720 102 532 675 345 1899 . . 36 139 5333 Explosions 14785 | . . 242 . 503 1399 . 300 . . 943 72 1853 394 . 928 . 298 . . 941 697 185 206 . 194 5630 Melee 1267 | . . . . . 36 155 . . . . 262 . . . . . . . . . 243 . . . 62 509 Ramming 27 | . . 6 . . . . . . . . . . . . . . . . . . . . . . . 21 Kinetic 12227 | . 220 103 . . 1684 . 284 . . 228 269 844 147 . 649 187 56 225 . . 3070 863 170 . 147 3081 Thermal 11447 | 66 332 158 . . 1074 . 579 45 . 219 391 1700 91 . 340 817 102 307 675 345 530 . . 36 139 3501 Explosive 10713 | . . 242 . 503 863 . 300 . . 674 72 505 394 . 276 . 298 . . 492 270 . . . 194 5630 Electromagnetic 5340 | . . . . . 673 . 47 . . 269 30 1678 . . 652 . . . . 449 347 185 206 . . 804 Impact 453 | . . . . . 36 155 . . . . 262 . . . . . . . . . . . . . . . Slashing 814 | . . . . . . . . . . . . . . . . . . . . . 243 . . . 62 509 Piercing . | . . . . . . . . . . . . . . . . . . . . . . . . . . . Entropic 797 | . . . . . . . . . . . . . . . . . . . . . . . . . . 797 Highest Corruption 79 | . . . . . . 1 1 1 1 1 . 7 7 7 19 . . . . . 15 15 15 15 . 79 Average Corruption 20 | . . . . . . 1 1 1 1 1 . 6 7 7 9 . . . . . 9 15 15 15 . 40 Corruption Purged . | . . . . . . . . . . . . . . . . . . . . . . . . . . . Corruption Blocked . | . . . . . . . . . . . . . . . . . . . . . . . . . . . Effects 611 | . . . . . . . 8 1 1 6 . 24 7 4 38 . . . . . 89 48 29 6 . 350 Message Errors 142 | . . . . . . . 1 . 1 1 . 6 . 2 13 . . . . . 25 10 5 2 . 76 Matter Fused 124 | . . . . . . . 1 1 . 1 . 6 2 1 7 . . . . . 21 7 9 . . 68 Heat Flow Errors 74 | . . . . . . . 1 . . 1 . 4 . 1 6 . . . . . 5 8 4 1 . 43 Energy Discharges 68 | . . . . . . . 2 . . 2 . 2 4 . 3 . . . . . 13 4 5 1 . 32 Parts Rejected 10 | . . . . . . . . . . . . . . . . . . . . . 1 1 1 . . 7 Parts Fused 5 | . . . . . . . 1 . . . . . . . . . . . . . . 1 . . . 3 Data Loss (minor) 66 | . . . . . . . 1 . . . . 1 . . 3 . . . . . 11 11 1 2 . 36 Data Loss (major) 26 | . . . . . . . . . . . . 3 1 . 3 . . . . . 4 1 2 . . 12 Misfires 21 | . . . . . . . . . . 1 . 2 . . . . . . . . 5 . 2 . . 11 Alerts 12 | . . . . . . . 1 . . . . . . . 2 . . . . . . . . . . 9 Misdirections 14 | . . . . . . . . . . . . . . . . . . . . . . 1 . . . 13 Weapon Failures 49 | . . . . . . . . . . . . . . . 1 . . . . . 4 4 . . . 40 Overload Shots 1 | . . . . . . . . . . . . . . . 1 . . . . . . . . . . . Overflow Damage 1612 | . . . . 32 67 113 159 . . 41 65 59 65 . 8 59 33 20 78 70 50 . . . 36 657 Projectiles 881 | . . . . . 27 . 159 . . 25 . 15 . . . 59 . 20 78 70 50 . . . . 378 Explosions 504 | . . . . 32 40 . . . . 16 . 44 65 . 8 . 33 . . . . . . . 36 230 Melee 227 | . . . . . . 113 . . . . 65 . . . . . . . . . . . . . . 49 Knockbacks 33 | . . . . . . 1 . . . . 1 . . . . . . . . . 18 . . . . 13 Impact 2 | . . . . . . 1 . . . . 1 . . . . . . . . . . . . . . . Kinetic 30 | . . . . . . . . . . . . . . . . . . . . . 18 . . . . 12 Secondary 1 | . . . . . . . . . . . . . . . . . . . . . . . . . . 1 Self-Inflicted Damage 259 | . . 3 . . 2 . . . . 19 . . 22 . 116 . . . . . . . . . 16 81 Shots 8 | . . . . . 1 . . . . 1 . . 1 . 2 . . . . . . . . . 1 2 Rammed 3 | . . 1 . . . . . . . . . . . . . . . . . . . . . . . 2 Targets Rammed 3 | . . 1 . . . . . . . . . . . . . . . . . . . . . . . 2 Kicked . | . . . . . . . . . . . . . . . . . . . . . . . . . . . Crushed . | . . . . . . . . . . . . . . . . . . . . . . . . . . . Highest Temperature 270 | . 148 136 . . 119 . 109 . . 69 253 231 14 247 249 152 228 270 9 216 174 260 228 193 260 250 Average Temperature 74 | . 54 45 . . 31 . 71 . . 27 73 61 5 192 49 56 91 99 6 103 58 106 122 107 108 77 Received Heat Transfer 2912 | . 264 225 . . 558 . . . . 54 33 516 . 9 105 18 18 45 . 60 81 4 . . . 922 Effects 4 | . . . . . . . . . . . . 2 . . . . . 2 . . . . . . . . Interference 4 | . . . . . . . . . . . . 2 . . . . . 2 . . . . . . . . Siege Activations 37 | . . . . . . . . . . . . . . . . 1 1 1 . 1 9 2 1 . 3 18 Total Turns 796 | . . . . . . . . . . . . . . . . 34 14 9 . 16 220 43 16 . 28 416 Longest Duration 57 | . . . . . . . . . . . . . . . . 34 14 9 . 16 57 29 16 . 20 45 Robots Corrupted 18 | . . . . . 1 . . . . . . 3 . . 2 . . . . 3 2 2 1 . . 4 Combat Hostiles 17 | . . . . . 1 . . . . . . 3 . . 1 . . . . 3 2 2 1 . . 4 Parts Fried 43 | . . . . . 3 1 . . . . 2 14 . . 2 . . . . 6 5 2 3 . . 5 Impact Corruptions 6 | . . . . . . 4 . . . . 2 . . . . . . . . . . . . . . . Robots Melted 4 | . . . . . 1 . . . . . . . . . . . . . . . 1 . . . . 2 Combat Hostiles 3 | . . . . . 1 . . . . . . . . . . . . . . . 1 . . . . 1 Parts Melted 18 | . 1 1 . . 2 . 1 . . 1 . 3 . . 1 1 . . . . 1 . . . . 6 Heat Transferred 13285 | 150 750 361 . . 1739 . 925 74 . 333 481 2041 111 . 383 888 111 333 666 370 444 . . 37 111 2977 Parts Sabotaged 3 | . . . . . . . . . . . . . . . . . . . . . . . . . . 3 Parts Stolen . | . . . . . . . . . . . . . . . . . . . . . . . . . . . Parts Stripped . | . . . . . . . . . . . . . . . . . . . . . . . . . . . Power Chain Reactions 6 | . . . . . . . . . . . . 4 . . . . . . . . 2 . . . . . Missiles Intercepted . | . . . . . . . . . . . . . . . . . . . . . . . . . . . Alert | -11 -10 -10 -10 -9 -8 -7 -7 -7 -7 -6 -6 -6 -6 -6 -6 -5 -5 -5 -5 -4 -4 -4 -4 -4 -3 -3 ------- Run | Jun Mat Min Exi Min Mat Fac Low Low Dat Pro Fac Ext Cet Arc Hub Fac Upp Upp Zhi Pro Fac Upp Upp War Pro Res Peak Influence 2379 | 15 264 234 . 107 1134 414 . . . . 295 631 528 221 642 408 . . . . 505 . . . . 2379 Initial 379 | . 9 30 . . . 379 . . . . 288 46 301 211 77 299 . . . . 63 . . . . . Average 402 | 5 81 151 . 54 387 368 . . . . 151 361 404 211 198 269 . . . . 249 . . . . 718 Maximum Alert Level 5 | . 1 1 . . 4 2 . . . . 1 2 2 1 2 2 . . . . 2 . . . . 5 Low Security (%) 31 | 100 97 41 . 100 33 . . . . . 72 37 . 7 65 8 . . . . 22 . . . . 9 Level 1 30 | . 2 58 . . 36 69 . . . . 27 9 51 92 24 84 . . . . 71 . . . . 9 Level 2 23 | . . . . . 8 30 . . . . . 52 48 . 9 7 . . . . 5 . . . . 42 Level 3 9 | . . . . . 19 . . . . . . . . . . . . . . . . . . . . 23 Level 4 2 | . . . . . 2 . . . . . . . . . . . . . . . . . . . . 6 Level 5 . | . . . . . . . . . . . . . . . . . . . . . . . . . . . High Security 2 | . . . . . . . . . . . . . . . . . . . . . . . . . . 7 Max Security . | . . . . . . . . . . . . . . . . . . . . . . . . . . . Squads Dispatched 69 | . 3 . . . 7 . . . . . 2 5 . . 4 1 . . . . 11 . . . . 36 Investigation 5 | . 2 . . . 1 . . . . . . . . . . . . . . . 2 . . . . . Extermination 20 | . . . . . . . . . . . 1 . . . 2 1 . . . . 5 . . . . 11 Reinforcement 17 | . 1 . . . 3 . . . . . 1 4 . . 2 . . . . . 4 . . . . 2 Assault 27 | . . . . . 3 . . . . . . 1 . . . . . . . . . . . . . 23 Garrison . | . . . . . . . . . . . . . . . . . . . . . . . . . . . Intercept . | . . . . . . . . . . . . . . . . . . . . . . . . . . . Searches Triggered . | . . . . . . . . . . . . . . . . . . . . . . . . . . . Data Miner Redirects 6 | . . . . . . . . . . . . . . . . . . . . . . . . . . 6 Construction Impeded 4 | . . . . . . . . . . . . 3 . . 1 . . . . . . . . . . . Haulers Reinforced 2 | . . . . . . . . . . . 1 . . . 1 . . . . . . . . . . . Active Scanning Responses . | . . . . . . . . . . . . . . . . . . . . . . . . . . . Cargo Convoy Interrupts . | . . . . . . . . . . . . . . . . . . . . . . . . . . . Stealth | -11 -10 -10 -10 -9 -8 -7 -7 -7 -7 -6 -6 -6 -6 -6 -6 -5 -5 -5 -5 -4 -4 -4 -4 -4 -3 -3 --------- Run | Jun Mat Min Exi Min Mat Fac Low Low Dat Pro Fac Ext Cet Arc Hub Fac Upp Upp Zhi Pro Fac Upp Upp War Pro Res Distress Signals 25 | . 1 . . . 4 . . . . . 1 4 3 1 3 1 . . . . 2 . . 1 . 4 Communications Jammed 164 | . . . . . . . . . . . . 4 . . . . . . . . 5 . . . . 155 Distress Signals 163 | . . . . . . . . . . . . 4 . . . . . . . . 4 . . . . 155 Times Spotted 502 | . 20 8 . 15 80 2 3 . . 18 11 39 12 4 17 8 1 5 . 6 50 16 5 3 6 173 Peak Tracking Total 28 | . 3 3 . 18 5 1 3 . . 7 3 6 4 5 4 2 1 3 . 5 5 5 3 8 3 28 Tactical Retreats 32 | . 1 1 . . 6 . . . . 1 . 2 . 1 1 . . 1 . 1 3 2 . 1 1 10 Traps | -11 -10 -10 -10 -9 -8 -7 -7 -7 -7 -6 -6 -6 -6 -6 -6 -5 -5 -5 -5 -4 -4 -4 -4 -4 -3 -3 ------- Run | Jun Mat Min Exi Min Mat Fac Low Low Dat Pro Fac Ext Cet Arc Hub Fac Upp Upp Zhi Pro Fac Upp Upp War Pro Res Traps Triggered 12 | . 2 . . . 1 1 . . . . . 6 . . 1 . . . . . . . . . . 1 Indirectly . | . . . . . . . . . . . . . . . . . . . . . . . . . . . Trap Hack Attempts . | . . . . . . . . . . . . . . . . . . . . . . . . . . . Triggered . | . . . . . . . . . . . . . . . . . . . . . . . . . . . Disarmed . | . . . . . . . . . . . . . . . . . . . . . . . . . . . Reprogrammed . | . . . . . . . . . . . . . . . . . . . . . . . . . . . Reused 3 | . . . . 1 . . . . . . . . . . . . . . . . . . . . . 2 Traps Extracted . | . . . . . . . . . . . . . . . . . . . . . . . . . . . Installed 8 | . . . . 3 1 . . . . . . . . . . . . . . . . . . . . 4 Triggered 21 | . . . . 1 . . . . . . . . . . . . . . . . . . . 17 . 3 Most Traps Carried 2 | . . . . 2 1 . . . . . . . . . . . . . . . . . . . . 2 Machines | -11 -10 -10 -10 -9 -8 -7 -7 -7 -7 -6 -6 -6 -6 -6 -6 -5 -5 -5 -5 -4 -4 -4 -4 -4 -3 -3 ---------- Run | Jun Mat Min Exi Min Mat Fac Low Low Dat Pro Fac Ext Cet Arc Hub Fac Upp Upp Zhi Pro Fac Upp Upp War Pro Res Machines Disabled 43 | . . . . 1 4 . . . . . 1 4 2 . 16 1 . 1 2 . 8 . . . . 3 Max in Single Turn 5 | . . . . 1 1 . . . . . 1 1 . . 5 1 . 1 1 . 1 . . . . 1 Garrison Access 5 | . . . . . . . . . . . 1 . . . 1 . . . . . 1 . . . . 2 Network Hub 2 | . . . . . . . . . . . . . . . 2 . . . . . . . . . . . Energy Cycler 2 | . . . . . . . . . . . . 2 . . . . . . . . . . . . . . Machines Repaired . | . . . . . . . . . . . . . . . . . . . . . . . . . . . Machines Sabotaged . | . . . . . . . . . . . . . . . . . . . . . . . . . . . Overloaded Fab Kills . | . . . . . . . . . . . . . . . . . . . . . . . . . . . Hacking | -11 -10 -10 -10 -9 -8 -7 -7 -7 -7 -6 -6 -6 -6 -6 -6 -5 -5 -5 -5 -4 -4 -4 -4 -4 -3 -3 --------- Run | Jun Mat Min Exi Min Mat Fac Low Low Dat Pro Fac Ext Cet Arc Hub Fac Upp Upp Zhi Pro Fac Upp Upp War Pro Res Machines Accessed 80 | . 4 . . 1 8 1 . . 4 . 7 3 . 1 6 4 2 1 8 . 11 . 1 6 . 12 Terminals 38 | . 4 . . . 6 . . . . . 5 2 . . 5 3 . . . . 7 . . . . 6 Fabricators 2 | . . . . . . . . . . . . . . . . . . . . . 2 . . . . . Repair Stations 5 | . . . . . 1 1 . . . . . . . . . 1 . . . . . . . . . 2 Recycling Units 3 | . . . . . . . . . . . . 1 . . . . . . . . 1 . . . . 1 Scanalyzers 3 | . . . . . 1 . . . . . 1 . . . . . . . . . . . . . . 1 Garrison Access 5 | . . . . . . . . . . . 1 . . . 1 . . . . . 1 . . . . 2 Total Hacks 285 | . 12 . . 1 24 3 . . 30 . 19 6 . 25 10 23 7 1 43 . 38 . 1 7 . 35 Successful 196 | . 6 . . 1 12 2 . . 30 . 8 1 . 25 4 12 7 1 43 . 21 . 1 7 . 15 Failed 89 | . 6 . . . 12 1 . . . . 11 5 . . 6 11 . . . . 17 . . . . 20 Catastrophic 12 | . . . . . 1 . . . . . . 2 . . . 1 . . . . 5 . . . . 3 Database Lockouts . | . . . . . . . . . . . . . . . . . . . . . . . . . . . Manual 75 | . 10 . . . 15 . . . . . 9 1 . . 7 9 . . . . 14 . . 1 . 9 Terminals 121 | . 12 . . . 20 . . . . . 14 4 . . 9 13 . . . . 31 . . . . 18 Fabricators 5 | . . . . . . . . . . . . . . . . . . . . . 5 . . . . . Repair Stations 24 | . . . . . 2 3 . . . . . . . . . 10 . . . . . . . . . 9 Recycling Units 4 | . . . . . . . . . . . . 2 . . . . . . . . 1 . . . . 1 Scanalyzers 8 | . . . . . 2 . . . . . 3 . . . . . . . . . . . . . . 3 Garrison Access 8 | . . . . . . . . . . . 2 . . . 1 . . . . . 1 . . . . 4 Terminal Hacks 143 | . 2 . . 1 5 . . . 30 . 3 . . 25 1 2 7 1 43 . 12 . 1 7 . 3 Record 84 | . . . . . . . . . 11 . . . . 25 1 . 6 1 35 . . . . 5 . . Part Schematic 17 | . . . . . . . . . 11 . 1 . . . . . . . 4 . 1 . . . . . Robot Schematic 5 | . . . . . . . . . 5 . . . . . . . . . . . . . . . . . Prototype ID Bank 7 | . . . . . . . . . 3 . . . . . . . . . 4 . . . . . . . Open Door 5 | . . . . 1 . . . . . . . . . . . . 1 . . . . . 1 2 . . Branch Access Points 3 | . . . . . . . . . . . . . . . . 1 . . . . 1 . . . . 1 Machine Index 1 | . . . . . . . . . . . . . . . . . . . . . 1 . . . . . Terminal Index 3 | . 1 . . . . . . . . . . . . . . 1 . . . . . . . . . 1 Alert Level 1 | . . . . . . . . . . . . . . . . . . . . . 1 . . . . . Unreport Threat 8 | . 1 . . . 2 . . . . . 1 . . . . . . . . . 3 . . . . 1 Locate Traps 7 | . . . . . 3 . . . . . 1 . . . . . . . . . 3 . . . . . Security Status 1 | . . . . . . . . . . . . . . . . . . . . . 1 . . . . . Hauler Manifests 1 | . . . . . . . . . . . . . . . . . . . . . 1 . . . . . Fabricator Hacks 4 | . . . . . . . . . . . . . . . . . . . . . 4 . . . . . Load Schematic 2 | . . . . . . . . . . . . . . . . . . . . . 2 . . . . . Build 2 | . . . . . . . . . . . . . . . . . . . . . 2 . . . . . Repair Station Hacks 14 | . . . . . 2 2 . . . . . . . . . 6 . . . . . . . . . 4 Scan Component 7 | . . . . . 1 1 . . . . . . . . . 3 . . . . . . . . . 2 Repair 7 | . . . . . 1 1 . . . . . . . . . 3 . . . . . . . . . 2 Recycling Unit Hacks 3 | . . . . . . . . . . . . 1 . . . . . . . . 1 . . . . 1 Retrieve Components 3 | . . . . . . . . . . . . 1 . . . . . . . . 1 . . . . 1 Scanalyzer 6 | . . . . . 2 . . . . . 2 . . . . . . . . . . . . . . 2 Insert Component 4 | . . . . . 1 . . . . . 1 . . . . . . . . . . . . . . 2 Analyze 2 | . . . . . 1 . . . . . 1 . . . . . . . . . . . . . . . Garrison Access Hacks 5 | . . . . . . . . . . . 1 . . . 1 . . . . . 1 . . . . 2 Seal Access 5 | . . . . . . . . . . . 1 . . . 1 . . . . . 1 . . . . 2 Unauthorized Hacks 21 | . 4 . . . 3 . . . . . 2 . . . 2 4 . . . . 3 . . . . 3 Terminals 20 | . 4 . . . 3 . . . . . 2 . . . 2 4 . . . . 2 . . . . 3 Track 5 | . 1 . . . 1 . . . . . . . . . 1 1 . . . . . . . . . 1 Assimilate 2 | . . . . . . . . . . . . . . . . 1 . . . . . . . . . 1 Botnet 13 | . 3 . . . 2 . . . . . 2 . . . 1 2 . . . . 2 . . . . 1 Fabricators 1 | . . . . . . . . . . . . . . . . . . . . . 1 . . . . . Prioritize 1 | . . . . . . . . . . . . . . . . . . . . . 1 . . . . . Repair Stations . | . . . . . . . . . . . . . . . . . . . . . . . . . . . Recycling Units . | . . . . . . . . . . . . . . . . . . . . . . . . . . . Scanalyzers . | . . . . . . . . . . . . . . . . . . . . . . . . . . . Garrison Access . | . . . . . . . . . . . . . . . . . . . . . . . . . . . Data Cores Recovered 1 | . . . . . . . . . . . 1 . . . . . . . . . . . . . . . Used 1 | . . . . . . . . . . . 1 . . . . . . . . . . . . . . . Hacking Detections 48 | . 4 . . . 7 1 . . . . 6 3 . . 5 4 . . . . 8 . . . . 10 Full Trace Events 2 | . . . . . . . . . . . . . . . . . . . . . 2 . . . . . Feedback Events . | . . . . . . . . . . . . . . . . . . . . . . . . . . . Feedback Blocked . | . . . . . . . . . . . . . . . . . . . . . . . . . . . Robot Schematics Acquired 5 | . . . . . . . . . 5 . . . . . . . . . . . . . . . . . Robots Built . | . . . . . . . . . . . . . . . . . . . . . . . . . . . Authchips . | . . . . . . . . . . . . . . . . . . . . . . . . . . . Time . | . . . . . . . . . . . . . . . . . . . . . . . . . . . Total Robot Build Rating . | . . . . . . . . . . . . . . . . . . . . . . . . . . . Part Schematics Acquired 19 | . . . . . 1 . . . 11 . 2 . . . . . . . 4 . 1 . . . . . Parts Built 2 | . . . . . . . . . . . . . . . . . . . . . 2 . . . . . Authchips . | . . . . . . . . . . . . . . . . . . . . . . . . . . . Time 146 | . . . . . . . . . . . . . . . . . . . . . 146 . . . . . Total Part Build Rating 13 | . . . . . . . . . . . . . . . . . . . . . 13 . . . . . Parts Repaired 7 | . . . . . 1 1 . . . . . . . . . 3 . . . . . . . . . 2 Time 211 | . . . . . 32 22 . . . . . . . . . 95 . . . . . . . . . 62 Parts Recycled . | . . . . . . . . . . . . . . . . . . . . . . . . . . . Recycled Matter . | . . . . . . . . . . . . . . . . . . . . . . . . . . . Retrieved Matter . | . . . . . . . . . . . . . . . . . . . . . . . . . . . Retrieved Components 20 | . . . . . . . . . . . . 10 . . . . . . . . 10 . . . . . Parts Scanalyzed 2 | . . . . . 1 . . . . . 1 . . . . . . . . . . . . . . . Part Schematics Acquired 2 | . . . . . 1 . . . . . 1 . . . . . . . . . . . . . . . Parts Damaged . | . . . . . . . . . . . . . . . . . . . . . . . . . . . Bothacking | -11 -10 -10 -10 -9 -8 -7 -7 -7 -7 -6 -6 -6 -6 -6 -6 -5 -5 -5 -5 -4 -4 -4 -4 -4 -3 -3 ------------ Run | Jun Mat Min Exi Min Mat Fac Low Low Dat Pro Fac Ext Cet Arc Hub Fac Upp Upp Zhi Pro Fac Upp Upp War Pro Res Used RIF Installer . | . . . . . . . . . . . . . . . . . . . . . . . . . . . Robots Hacked 6 | . . . . . . . . . 2 1 . 1 . . . . . . . . . . . 2 . . Non-combat 2 | . . . . . . . . . 1 . . 1 . . . . . . . . . . . . . . Combat 4 | . . . . . . . . . 1 1 . . . . . . . . . . . . . 2 . . Robot Hacks Applied 7 | . . . . . . . . . 3 1 . 1 . . . . . . . . . . . 2 . . parse_system 6 | . . . . . . . . . 3 1 . . . . . . . . . . . . . 2 . . find_recycling 1 | . . . . . . . . . . . . 1 . . . . . . . . . . . . . . Relay Couplers Released 3 | . . . . . . . . . . . . . . . 3 . . . . . . . . . . . Machine Destruction 3 | . . . . . . . . . . . . . . . 3 . . . . . . . . . . . Fabnet Peak Effective % . | . . . . . . . . . . . . . . . . . . . . . . . . . . . Robots Rewired 18 | . . . . . . . . . . . . 18 . . . . . . . . . . . . . . Allies Hacked . | . . . . . . . . . . . . . . . . . . . . . . . . . . . Hacks Repelled . | . . . . . . . . . . . . . . . . . . . . . . . . . . . Allies | -11 -10 -10 -10 -9 -8 -7 -7 -7 -7 -6 -6 -6 -6 -6 -6 -5 -5 -5 -5 -4 -4 -4 -4 -4 -3 -3 -------- Run | Jun Mat Min Exi Min Mat Fac Low Low Dat Pro Fac Ext Cet Arc Hub Fac Upp Upp Zhi Pro Fac Upp Upp War Pro Res Total Allies 21 | . . . . . . . . . . 1 . 18 . . . 1 . . . . . . . . . 1 Largest Group 8 | . . . . . . . . . . 1 1 8 5 1 . 1 1 1 . . . . . . . 1 Highest-Rated Group 230 | . . . . . . . . . . 96 96 230 152 39 . 26 26 26 . . . . . . . 26 Highest-Rated Ally 96 | . . . . . . . . . . 96 96 39 39 39 . 26 26 26 . . . . . . . 26 Total Orders 313 | . . . . 3 14 5 19 . . 10 12 52 15 . 15 13 15 13 . . 14 14 8 12 22 57 STAY 92 | . . . . 1 6 1 5 . . 5 4 24 3 . 6 4 7 7 . . 2 . 2 . . 15 ROAM 17 | . . . . . . . . . . . . . 2 . . . . . . . 2 . . 1 5 7 FOLLOW 70 | . . . . 1 2 2 6 . . 5 5 16 3 . 4 5 5 4 . . 1 1 2 . 1 7 EXPLORE 20 | . . . . . . . . . . . . . 4 . . . . 1 . . . . . 3 6 6 RETURN 114 | . . . . 1 6 2 8 . . . 3 12 3 . 5 4 3 1 . . 9 13 4 8 10 22 Ally Attacks 289 | . . . . . . . . . . 24 23 47 45 2 . . . . . . 38 79 19 5 7 . Total Damage 6564 | . . . . . . . . . . 754 803 1411 644 62 . . . . . . 684 1709 387 54 56 . Kills 40 | . . . . . . . . . . 5 6 13 4 . . . . . . . 2 7 2 1 . . Allies Corrupted 1 | . . . . . . . . . . . . . . . . . . . . . . . . . . 1 Allies Melted 1 | . . . . . . . . . . . . . . 1 . . . . . . . . . . . . Intel | -11 -10 -10 -10 -9 -8 -7 -7 -7 -7 -6 -6 -6 -6 -6 -6 -5 -5 -5 -5 -4 -4 -4 -4 -4 -3 -3 ------- Run | Jun Mat Min Exi Min Mat Fac Low Low Dat Pro Fac Ext Cet Arc Hub Fac Upp Upp Zhi Pro Fac Upp Upp War Pro Res Robot Analysis Total . | . . . . . . . . . . . . . . . . . . . . . . . . . . . Derelict Logs Recovered 11 | . . 1 . . . . 1 2 . 1 . . . . . . 2 1 . . . 1 2 . . . Drone Launches 172 | . . . . 1 10 2 4 . . 1 2 11 10 . 6 4 4 8 . . 15 18 4 14 22 36 Drone Recoveries 150 | . . . . 1 9 1 4 . . 1 2 11 6 1 5 2 4 6 . . 11 18 6 13 22 27 Exploration | -11 -10 -10 -10 -9 -8 -7 -7 -7 -7 -6 -6 -6 -6 -6 -6 -5 -5 -5 -5 -4 -4 -4 -4 -4 -3 -3 ------------- Run | Jun Mat Min Exi Min Mat Fac Low Low Dat Pro Fac Ext Cet Arc Hub Fac Upp Upp Zhi Pro Fac Upp Upp War Pro Res Turns Passed 30222 | 173 655 485 483 617 2169 469 879 449 195 656 1441 2454 291 82 1045 876 946 1003 438 566 3168 1064 744 1807 886 6181 Spaces Moved 15531 | 85 407 342 418 466 1211 367 634 378 156 405 985 1238 133 53 555 418 531 510 244 340 1501 402 285 840 289 2338 Core 17 | 1 . . . . . . . . . . . . . . . . . . . . . . . . . 16 Treads 5148 | 77 3 . . . 15 . . . . . . 1 . . . 1 . . 1 . 912 402 285 840 289 2322 Legs 5 | . . . . . . . . . . . . . . . . . . . 5 . . . . . . . Wheels 10361 | 7 404 342 418 466 1196 367 634 378 156 405 985 1237 133 53 555 417 531 510 238 340 589 . . . . . Hover . | . . . . . . . . . . . . . . . . . . . . . . . . . . . Flight . | . . . . . . . . . . . . . . . . . . . . . . . . . . . Fastest Speed 50 | 50 100 115 115 110 105 110 110 110 110 125 125 116 130 130 130 130 135 150 135 135 135 158 238 158 158 50 Average Speed 147 | 153 114 115 115 123 121 110 113 115 110 125 126 137 135 130 130 144 153 160 152 145 154 213 238 178 229 173 Slowest Speed 330 | 160 160 115 115 140 225 110 140 140 110 125 155 320 175 130 145 240 165 165 330 150 243 238 238 238 238 240 Overloaded Moves . | . . . . . . . . . . . . . . . . . . . . . . . . . . . Propulsion Burnouts . | . . . . . . . . . . . . . . . . . . . . . . . . . . . Robots Hopped . | . . . . . . . . . . . . . . . . . . . . . . . . . . . Cave-ins Triggered . | . . . . . . . . . . . . . . . . . . . . . . . . . . . Teleports 1 | . . . . . . . . . . . . . . . . . . . . . . . . . . 1 Exploration Rate (%) 56 | 5 62 47 89 66 76 9 69 50 74 50 24 88 56 69 55 11 65 65 62 60 27 62 59 94 80 41 Regions Visited 26 Branch Regions 19 Pre-discovered Areas 9 | . . 2 . . . . . . 1 . . . . . . . . . 3 . . . 2 1 . . Known Exits Taken 10 | . . . . 1 . 1 . 1 1 . 1 . 1 . 1 1 . . . . 1 . . . 1 . Unknown Exits Taken 16 | 1 1 1 1 . 1 . 1 . . 1 . 1 . 1 . . 1 1 1 1 . 1 1 1 . . Scrap Searched 19 | . . . . 1 . . 2 3 . 2 . . . . . . 2 2 . 1 . 1 2 . 3 . Spaces Dug 440 | . . 21 . . 42 1 21 . . 19 12 1 . . 11 4 10 11 . 1 35 9 3 8 55 176 Terrain Destroyed 1724 | . . 48 . 25 128 1 67 . . 68 23 111 39 . 396 15 55 28 1 33 100 46 12 14 67 447 Melee 54 | . . . . . 13 1 6 . . 2 1 . . . 1 . . . . . 13 2 . 4 . 11 Projectile 434 | . . . . . 18 . 4 . . 12 8 27 1 . 42 15 39 26 1 7 57 44 12 10 16 95 AOE 1232 | . . 48 . 25 97 . 57 . . 54 14 84 38 . 353 . 16 . . 26 30 . . . 51 339 Terrain Rammed . | . . . . . . . . . . . . . . . . . . . . . . . . . . . Walls Destroyed . | . . . . . . . . . . . . . . . . . . . . . . . . . . . Machines Disabled . | . . . . . . . . . . . . . . . . . . . . . . . . . . . Actions | -11 -10 -10 -10 -9 -8 -7 -7 -7 -7 -6 -6 -6 -6 -6 -6 -5 -5 -5 -5 -4 -4 -4 -4 -4 -3 -3 --------- Run | Jun Mat Min Exi Min Mat Fac Low Low Dat Pro Fac Ext Cet Arc Hub Fac Upp Upp Zhi Pro Fac Upp Upp War Pro Res Total 20742 | 112 521 394 421 501 1637 426 718 386 185 493 1114 1801 218 66 777 639 613 627 291 381 2086 518 325 1134 478 3880 Wait 2514 | . 26 18 . 11 102 40 9 3 2 14 37 272 35 14 111 107 17 37 . 5 308 9 9 244 146 938 Move 15505 | 84 406 341 417 465 1210 366 633 377 155 404 984 1237 132 52 554 417 530 509 243 339 1500 401 284 839 288 2338 Hop . | . . . . . . . . . . . . . . . . . . . . . . . . . . . Pick Up 237 | 9 18 4 2 5 45 7 . 1 11 1 15 17 6 . 4 19 1 5 5 . 21 5 1 5 1 29 Fast Attach 91 | 6 1 . . . 6 . 1 . 1 1 . 4 . . 5 5 3 3 8 2 4 3 1 7 . 30 Attach 137 | 1 2 4 . 2 18 2 . . 1 1 2 20 6 . 12 14 2 4 1 . 7 7 . 1 . 30 Detach 60 | . 1 . . . 2 . . . . 2 . 4 2 . 6 10 3 1 1 1 4 4 . 3 . 16 Swap 449 | . 8 2 . 5 59 5 11 . . 24 29 39 10 . 16 17 8 6 2 5 55 11 8 6 17 106 Drop 215 | . 14 . 2 4 33 3 2 1 12 2 9 7 6 . 5 13 5 5 11 1 20 6 2 12 2 38 Fire 1340 | 12 45 24 . 6 147 . 55 4 . 41 32 114 21 . 63 37 44 57 20 28 145 70 20 11 23 321 Melee 134 | . . . . . 14 3 7 . 3 3 6 39 . . 1 . . . . . 22 2 . 6 1 27 Ram 2 | . . 1 . . . . . . . . . . . . . . . . . . . . . . . 1 Kick . | . . . . . . . . . . . . . . . . . . . . . . . . . . . Crush 2 | . . . . . . . . . . . . . . . . . . . . . . . . . . 2 Escape Stasis 48 | . . . . . . . . . . . . 48 . . . . . . . . . . . . . . Rewire . | . . . . . . . . . . . . . . . . . . . . . . . . . . . Trap 8 | . . . . 3 1 . . . . . . . . . . . . . . . . . . . . 4 Miscellaneous . | . . . . . . . . . . . . . . . . . . . . . . . . . . . Route ------- -11/Junkyard -10/Materials (discovered 2 exits: [*Mat] / [*Min]) -10/Mines (discovered 3 exits: [*Mat x2] / *Exi) -10/Exiles -9/Mines -8/Materials (discovered 2 exits: *Fac x2) -7/Factory -7/Lower Caves -7/Lower Caves -7/Data Miner -6/Proximity Caves -6/Factory (discovered 2 exits: *Fac / *Ext) -6/Extension (discovered 3 exits: *Fac x2 / *Cet) -6/Cetus -6/Archives -6/Hub_04(d) (discovered 2 exits: *Fac x2) -5/Factory (discovered 2 exits: *Upp x2) -5/Upper Caves -5/Upper Caves -5/Zhirov -4/Proximity Caves -4/Factory (discovered 5 exits: *Res x2 / *Upp x2 / Arm) -4/Upper Caves -4/Upper Caves -4/Warlord -3/Proximity Caves -3/Research (discovered 3 exits: Res / *Tes x2) History --------- Turn | Location | Event 35 | -11/Junkyard | Discovered new exit (range 16) 174 | -11/Junkyard | Entered Materials 325 | -10/Materials | Discovered new exit (range 7) 364 | -10/Materials | Build established: Mutant 520 | -10/Materials | Discovered new exit (range 13) 708 | -10/Materials | Core integrity fell below 50% 829 | -10/Materials | Entered Mines 831 | -10/Mines | Met a Derelict bent on vengeance 899 | -10/Mines | Lost 4 parts (1p2n1u) 933 | -10/Mines | Discovered new exit (range 8) 983 | -10/Mines | Learned location of Zion (-6) 1253 | -10/Mines | Discovered new exit (range 8) 1276 | -10/Mines | Learned location of Storage (-9) 1308 | -10/Mines | Deemed a non-threat by the Exiles lab entrance 1310 | -10/Mines | Discovered new exit (range 5) 1314 | -10/Mines | Entered Exiles 1376 | -10/Exiles | Met 8R-AWN 1395 | -10/Exiles | Met EX-HEX 1452 | -10/Exiles | Met EX-DEC 1471 | -10/Exiles | Visited The Gauntlet 1622 | -10/Exiles | Met EX-BIN 1784 | -10/Exiles | Discovered new exit (range 14) 1797 | -10/Exiles | Entered Mines 1877 | -9/Mines | Found a hidden stash of uninstalled traps 1961 | -9/Mines | Assembled infested the area 2128 | -9/Mines | Found the Drone Emporium 2134 | -9/Mines | Found Prototype Device 2138 | -9/Mines | Identified Sensor Drone Bay 2401 | -9/Mines | Discovered new exit (range 6) 2410 | -9/Mines | Identified exit to Materials 2414 | -9/Mines | Entered Materials 2414 | -8/Materials | Evolved 4 slots: Propulsion x1, Utility x3 2491 | -8/Materials | Repaired Arm. Wheel 2717 | -8/Materials | Build established: Scavenger-Mutant 2891 | -8/Materials | Discovered new exit (range 9) 3768 | -8/Materials | Lost 3 parts (1n1u1w) 3964 | -8/Materials | Core integrity fell below 50% 4014 | -8/Materials | First assault squad dispatched 4355 | -8/Materials | Discovered new exit (range 6) 4583 | -8/Materials | Entered Factory 4583 | -7/Factory | Evolved 2 slots: Utility x2 4891 | -7/Factory | Discovered new exit (range 12) 4904 | -7/Factory | Identified exit to Lower Caves 4951 | -7/Factory | Repaired Hrd. Heavy Armor Plating 5052 | -7/Factory | Entered Lower Caves 5052 | -7/Lower Caves | Accompanied by 1 ally 5668 | -7/Lower Caves | Discovered new exit (range 9) 5851 | -7/Lower Caves | Learned Factory trap positions 5931 | -7/Lower Caves | Entered another Lower Caves area 5931 | -7/Lower Caves | Accompanied by 1 ally 6012 | -7/Lower Caves | Learned 4 Factory zone layouts 6108 | -7/Lower Caves | Learned Factory emergency access door positions 6199 | -7/Lower Caves | Discovered new exit (range 5) 6200 | -7/Lower Caves | Encountered a Warlord checkpoint 6205 | -7/Lower Caves | Identified exit to Data Miner 6380 | -7/Lower Caves | Entered Data Miner 6380 | -7/Data Miner | Accompanied by 1 ally 6380 | -7/Data Miner | Discovered new exit (range 6) 6441 | -7/Data Miner | Met Data Miner 6480 | -7/Data Miner | Learned location of Section 7 (-2) 6480 | -7/Data Miner | Acquired the access code to Warlord's prototype stash 6499 | -7/Data Miner | Received God Mode back door access code from Data Miner 6572 | -7/Data Miner | Identified exit to Proximity Caves 6575 | -7/Data Miner | Entered Proximity Caves 6575 | -6/Proximity Caves | Accompanied by 1 ally 6607 | -6/Proximity Caves | Learned Factory emergency access door positions 6712 | -6/Proximity Caves | Spotted B-75 Beast 6716 | -6/Proximity Caves | Escorted by Enhanced Grunt 6931 | -6/Proximity Caves | Spotter reported a threat 6948 | -6/Proximity Caves | Destroyed B-75 Beast 7066 | -6/Proximity Caves | Attracted the attention of an 0b10 checkpoint 7184 | -6/Proximity Caves | Unaware initiated a cargo recovery operation 7196 | -6/Proximity Caves | Discovered new exit (range 10) 7231 | -6/Proximity Caves | Entered Factory 7231 | -6/Factory | Accompanied by 2 allies 7231 | -6/Factory | Evolved 2 slots: Power x1, Utility x1 7233 | -6/Factory | Loaded intel: 87 trap records 7453 | -6/Factory | Discovered new exit (range 9) 7488 | -6/Factory | Identified exit to Factory 8643 | -6/Factory | Discovered new exit (range 16) 8668 | -6/Factory | Identified exit to Extension 8672 | -6/Factory | Entered Extension 8672 | -6/Extension | Accompanied by 1 ally 9528 | -6/Extension | Build established: Commander-Mutant 9592 | -6/Extension | Energy Cycler disabled 9592 | -6/Extension | Rescued a captive Derelict 9592 | -6/Extension | Rescued a captive Derelict 9594 | -6/Extension | Rescued a captive Derelict 9602 | -6/Extension | Rescued a captive Derelict 9880 | -6/Extension | Build established: Scavenger-Mutant 10183 | -6/Extension | Spotted B-75 Beast 10222 | -6/Extension | Disrupted transfer network 10244 | -6/Extension | Destroyed B-75 Beast 10337 | -6/Extension | Discovered exit to Factory (range 14) 10409 | -6/Extension | Lost 8 parts (1p2n4u1w) 10437 | -6/Extension | Extracted ID and sensor layout for unrecognized location from A7's data core 10523 | -6/Extension | Lost 6 parts (4n2w) 11114 | -6/Extension | Discovered exit to Factory (range 10) 11116 | -6/Extension | Discovered new exit (range 6) 11122 | -6/Extension | First assault squad dispatched 11126 | -6/Extension | Entered Cetus 11126 | -6/Cetus | Accompanied by 5 allies 11136 | -6/Cetus | Spotted Cetus Guard 11138 | -6/Cetus | Spotted Cetus Guard 11164 | -6/Cetus | Spotted Cetus Guard 11179 | -6/Cetus | Destroyed Cetus Guard 11191 | -6/Cetus | Spotted Cetus Guard 11206 | -6/Cetus | Destroyed Cetus Guard 11207 | -6/Cetus | Allies destroyed Cetus Guard 11211 | -6/Cetus | Allies destroyed Cetus Guard 11302 | -6/Cetus | Cetus Manufacturing Module disabled 11371 | -6/Cetus | Discovered new exit (range 15) 11392 | -6/Cetus | Identified exit to Archives 11417 | -6/Cetus | Entered Archives 11417 | -6/Archives | Accompanied by 4 allies 11436 | -6/Archives | Met Zhirov 11442 | -6/Archives | Reinforcements dispatched to Archives 11450 | -6/Archives | Read partially decrypted archive contents 11453 | -6/Archives | Discovered new exit (range 15) 11487 | -6/Archives | Reinforcements dispatched to Archives 11489 | -6/Archives | Zhirov warped through subspace 11499 | -6/Archives | Entered Hub_04(d) 11499 | -6/Hub_04(d) | Accompanied by 2 allies 11589 | -6/Hub_04(d) | Discovered exit to Factory (range 6) 11997 | -6/Hub_04(d) | Discovered exit to Factory (range 9) 12376 | -6/Hub_04(d) | System corruption reached 10% 12443 | -6/Hub_04(d) | Network Hub disabled 12479 | -6/Hub_04(d) | Network Hub disabled 12532 | -6/Hub_04(d) | Spotted Lightning 12544 | -6/Hub_04(d) | Entered Factory 12544 | -5/Factory | Evolved 2 slots: Propulsion x1, Utility x1 12573 | -5/Factory | Lost 3 parts (1p1n1w) 12707 | -5/Factory | Identified exit to Upper Caves 13080 | -5/Factory | Repaired Hrd. Heavy Armor Plating 13103 | -5/Factory | Repaired Shock Bomb Launcher 13366 | -5/Factory | Repaired Centrium Heavy Treads 13420 | -5/Factory | Entered Upper Caves 13420 | -5/Upper Caves | Accompanied by 1 ally 13503 | -5/Upper Caves | Learned location of 1 exit from Research 13503 | -5/Upper Caves | Learned Factory emergency access door positions 13503 | -5/Upper Caves | Learned Research emergency access door positions 13503 | -5/Upper Caves | Learned Armory security intel 13553 | -5/Upper Caves | Learned location of 1 exit from Factory 13752 | -5/Upper Caves | Attracted the attention of an 0b10 checkpoint 13983 | -5/Upper Caves | Learned Factory non-interactive machine intel 14309 | -5/Upper Caves | Encountered a Warlord checkpoint 14352 | -5/Upper Caves | Discovered new exit (range 4) 14366 | -5/Upper Caves | Entered another Upper Caves area 14366 | -5/Upper Caves | Accompanied by 1 ally 14432 | -5/Upper Caves | Found Alien Artifact 15123 | -5/Upper Caves | Discovered new exit (range 11) 15185 | -5/Upper Caves | Attracted the attention of an 0b10 checkpoint 15318 | -5/Upper Caves | Learned Factory terminal intel 15369 | -5/Upper Caves | Entered Zhirov 15369 | -5/Zhirov | Discovered new exit (range 3) 15461 | -5/Zhirov | Learned location of Quarantine (-2) 15461 | -5/Zhirov | Learned location of Testing (-3) 15461 | -5/Zhirov | Learned location of Command (-1) 15535 | -5/Zhirov | Found Alien Artifact 15535 | -5/Zhirov | Identified Integrated Reactor 15535 | -5/Zhirov | Installed Integrated Reactor, increased core energy generation (+10) 15559 | -5/Zhirov | Build established: Hacker-Mutant 15744 | -5/Zhirov | Found Alien Artifact 15807 | -5/Zhirov | Entered Proximity Caves 15947 | -4/Proximity Caves | Build established: Scavenger-Mutant 16183 | -4/Proximity Caves | Spotted B-86 Titan 16343 | -4/Proximity Caves | Discovered new exit (range 6) 16373 | -4/Proximity Caves | Entered Factory 16373 | -4/Factory | Evolved 2 slots: Utility x2 16374 | -4/Factory | Identified exit to Research 16376 | -4/Factory | Loaded intel: 221 non-interactive machine locations 16377 | -4/Factory | Loaded intel: 26 terminal locations 17010 | -4/Factory | Found Prototype Slashing Weapon 17011 | -4/Factory | Identified Vibroblade 17739 | -4/Factory | Discovered exit to Research (range 13) 17869 | -4/Factory | Identified exit to Upper Caves 17869 | -4/Factory | Identified exit to Armory 17888 | -4/Factory | Build established: Hacker-Mutant 18007 | -4/Factory | System corruption reached 10% 18423 | -4/Factory | Fabricated Assault Drone Bay? 19352 | -4/Factory | Fabricated Lyr. Heavy Armor Plating? 19541 | -4/Factory | Entered Upper Caves 19541 | -4/Upper Caves | Accompanied by 2 allies 19543 | -4/Upper Caves | Ambushed by wild Derelicts 20054 | -4/Upper Caves | Spotted B-86 Titan 20088 | -4/Upper Caves | Allies destroyed B-86 Titan 20324 | -4/Upper Caves | Learned 4 Research zone layouts 20465 | -4/Upper Caves | Encountered a Warlord checkpoint 20578 | -4/Upper Caves | Discovered new exit (range 13) 20605 | -4/Upper Caves | Entered another Upper Caves area 20605 | -4/Upper Caves | Accompanied by 2 allies 21279 | -4/Upper Caves | Discovered new exit (range 8) 21349 | -4/Upper Caves | Entered Warlord 21424 | -4/Warlord | Discovered new exit (range 8) 21512 | -4/Warlord | System corruption cleaned by Quarantine Array 21791 | -4/Warlord | Learned Armory recycling unit intel 21791 | -4/Warlord | Learned 4 Research zone layouts 22060 | -4/Warlord | Found Prototype Device 22060 | -4/Warlord | Identified Minesniffer Drone Bay 22264 | -4/Warlord | Warlord's base attacked by MAIN.C 22347 | -4/Warlord | Found Prototype Energy Cannon 22347 | -4/Warlord | Identified Vortex Cannon 22352 | -4/Warlord | Found Prototype Energy Cannon 22352 | -4/Warlord | Identified Vortex Driver 22356 | -4/Warlord | Found Vortex Driver 22460 | -4/Warlord | Met Warlord 22475 | -4/Warlord | Opened Warlord's prototype stash 22480 | -4/Warlord | Found Prototype Reactor 22485 | -4/Warlord | Found Prototype Device 22486 | -4/Warlord | Identified Exp. Phase Shifter 22501 | -4/Warlord | Found Prototype Device 22501 | -4/Warlord | Identified Thermal Barrier 22614 | -4/Warlord | Warlord forces counterattacked 22644 | -4/Warlord | Build established: Mutant 22939 | -4/Warlord | Warlord base infiltrated, sounded retreat 23156 | -4/Warlord | Entered Proximity Caves 23156 | -3/Proximity Caves | Accompanied by 1 ally 23964 | -3/Proximity Caves | Build established: Assassin 24013 | -3/Proximity Caves | Discovered exit to Research (range 6) 24042 | -3/Proximity Caves | Entered Research 24042 | -3/Research | Evolved 2 slots: Utility x2 24043 | -3/Research | Identified exit to Research 24157 | -3/Research | Repaired Exp. Propulsion Shielding 24359 | -3/Research | Build established: Infiltrator-Assassin 24417 | -3/Research | Identified Dimensional Node Initializer 24417 | -3/Research | Identified Transdimensional Reconstructor 24752 | -3/Research | System corruption reached 10% 25621 | -3/Research | System corruption reached 30% 25792 | -3/Research | First assault squad dispatched 25821 | -3/Research | Incoming assault squad redirected 26523 | -3/Research | Repaired Centrium Heavy Treads 27048 | -3/Research | Build established: Scavenger-Mutant 27332 | -3/Research | Found Prototype Slashing Weapon 27332 | -3/Research | Identified Nanosword 27467 | -3/Research | Found Prototype Launcher 27467 | -3/Research | Identified Tactical Quantum Warhead 27550 | -3/Research | Build established: Scavenger-Assassin 28057 | -3/Research | Incoming assault squad redirected 28067 | -3/Research | Incoming assault squad redirected 28642 | -3/Research | Incoming assault squad redirected 28810 | -3/Research | Incoming assault squad redirected 29203 | -3/Research | Build established: Scavenger-Mutant 29307 | -3/Research | Incoming assault squad redirected 29567 | -3/Research | Identified exit to Testing 29646 | -3/Research | Identified Vortex Chain Reactor 29729 | -3/Research | High security lockdown imminent 29809 | -3/Research | High security lockdown engaged 30041 | -3/Research | Destroyed 13 combat bots 30070 | -3/Research | Warped through subspace 30199 | -3/Research | Initialized slip node 30210 | -3/Research | Core integrity fell below 50% 30219 | -3/Research | Core integrity fell below 20% 30223 | -3/Research | Destroyed by Y-72 Warden with Quantum Rifle Last Messages --------------- 30212_ Slug penetrates L-61 Swordsman. 30212_ L-61 Swordsman destroyed. 30214_ M-36 Artificer repairs Gamma Rifle. 30215_ Dropped Huge Storage Unit. 30215_ Extracted 28 energy. 30216_ Adv. Medium Treads destroyed. 30216_ Penetrated by Slug. 30217_ Slug penetrates G-67 Veteran. 30217_ Penetrated by Slug. 30218_ Adv. Medium Treads destroyed. 30218_ Acquired 97 matter. 30218_ Adv. Hacking Suite destroyed. 30218_ Adv. Gravity Neutralizer destroyed. 30219_ Slug penetrates Wall. 30219_ Penetrated by Slug. 30219_ Slug penetrates G-67 Veteran. 30222_ QN=XU0WOL8J3IDI4JPF ZP 2 30222_ Penetrated by Slug. 30222_ Slug penetrates Wall. 30222_ M-36 Artificer repairs G-67 Veteran. Map ----- +----------------------------------------------------+ | | | | | | | | | ?????????????????????????????????????????#???##### | | ?????????????????????????????????????????# | | ?????????????????????????????????????????# | | ?????????????????????????????????????????# """"" | | ?????????????????????????????????????????# """"" | | ?????????????????????????????????????????# """"" | | ??????????????????????????????????????????? | | ??????????????????????+????+????????????????? | | ??????????????????????????????????#############+## | | ????????????????#+##########??????# ## | | ??????????????? #??????# ## # | | ##+###?????????? #??????# + # | | #??????????? +??????# # # | | ###?????????? #??????# # # | | ????????????? #??????# # | | #???????????????# #??????# | | ! #??????????????## ##?????# | | # #???????????????# #???????## # | | # #???????????????# ########## | | + #???????????????# YY g | | # #???????????????# > Y g / | | # #???????????????# @ YY ggm]][ | | # #???????????????# ###### ]!!!! | | # #???????????????# #????# ###/]! | | # #???????????????#########????# #?# ] | | # #??????????????????????#######+### "" | | # #??????????????????????# # "%" | | ##+######??????????????????# # " | | ! #??????????????????# # " | | #??????????????????# # "%" | | """#??????????????????# # " | | """#??????????????????# + | | ! """#??????????????????# = # | | #??????????????????# # ####+## | | #??????????????????#######+### # ! | | #####"##"#?????????????????# # # | | ####?????????????????# # # | | #????????????????????# # # | | #????????????????????#! + + | | " #????????????????????# # # """" | | T" = #????????????????????# # # """" | | " #????????????????????# # # """" | | #????????????????????# # # """" | | #????????????????????########### ####### | | #+#####???????????##?????????????????# #?????? | | #???????????# #?????????????????# #?????? | +----------------------------------------------------+ Best States ------------- Heat Dissipation 90 Coolant Potential 220 Energy Generation 65 Energy Capacity 1500 Matter Stores 383 Matter Capacity 800 Sight Range 16 Robot Scan Range 19 Terrain Scan Range 16 Terrain Scan Density 10 Jamming Range 14 Cloak Strength 2 Power Amplification 30 Additional Mass Support 16 Armor Coverage 1650 Resistance: KI 30 Resistance: TH 50 Power Shielding 66 Propulsion Shielding 90 Phase Shifting 20 Evasion (%) 60 Targeting Accuracy 8 Target Analysis 12 Recoil Reduction 4 Offensive Hacking 42 Defensive Hacking 12 Item Schematics ----------------- Arm. Wheel | -8/Materials | Scanalyzed Combat Drone Bay | -7/Data Miner | Free Lgt. Regenerative Plating | -7/Data Miner | Free Gravity Neutralizer | -7/Data Miner | Free Cld. Cesium-ion Thruster | -7/Data Miner | Free Com. Ion Cannon | -7/Data Miner | Free Nuclear Pulse Array | -7/Data Miner | Free Imp. Component Analysis Suite | -7/Data Miner | Free Imp. Remote Datajack | -7/Data Miner | Free Imp. Transmission Jammer | -7/Data Miner | Free Lance | -7/Data Miner | Free Imp. Antigrav System | -7/Data Miner | Free Imp. Propulsion Shielding | -6/Factory | Scanalyzed Centrium Wheel | -6/Factory | Hacked Assault Drone Bay | -5/Zhirov | Free Exp. Heat Sink | -5/Zhirov | Free Exp. Optical Array | -5/Zhirov | Free Imp. Arc Thrower | -5/Zhirov | Free Lyr. Heavy Armor Plating | -4/Factory | Hacked Robot Schematics ------------------ Y-54 Guardian | -7/Data Miner | Free S-27 Virus | -7/Data Miner | Free G-50 Soldier | -7/Data Miner | Free L-41 Fighter | -7/Data Miner | Free R-10 Processor | -7/Data Miner | Free Fabricated ------------ Assault Drone Bay | x1 | -4/Factory Lyr. Heavy Armor Plating | x1 | -4/Factory Alien Tech Used ----------------- Integrated Reactor Transdimensional Reconstructor Dimensional Node Initializer Achievements -------------- None Challenges ------------ None Game ------ Seed LauncherControlRifle Manual? 0 Play Time 08:49:01 Cumulative 1248.2 hours Start 2024.01.02 @ 23:16:07 End 2024.01.04 @ 04:30:41 Sessions 5 Manual Loads 0 Difficulty Rogue Special Mode None Game No. 454 Rogue 454 Adventurer 0 Explorer 0 Win Type - Total 26 Types 13/2/7/0/0/0/4/0/0 Lore% 90 Gallery% 92 Achievement% 85 Wizard Run 0 Options --------- ASCII 0 Keyboard 0 Movement Vi Keybinds 0 Fullscreen 0 Font 12/Crisp Map View 76x50 Tactical HUD 1 Map Filters NONE Filters NONE Steam 1 RUN: 4093dc81-609c-405c-90de-28383b5ffb47